fUST/lending_fUST_20250914
["ID","MTS","AMOUNT","RATE_DAILY","PERIOD"]
[385378466,1757802639556,-480.0,0.00024657,3]
[385378467,1757802639565,-480.0,0.00024657,3]
[385378468,1757802639574,-480.0,0.00024657,3]
[385378469,1757802639583,-672.52,0.00024657,3]
[385378470,1757802639593,-480.0,0.00024657,3]
[385378471,1757802639602,-480.0,0.00024657,3]
[385378472,1757802639612,-480.0,0.00024657,3]
[385378473,1757802639622,-480.0,0.00024657,3]
[385378474,1757802639631,-480.0,0.00024657,3]
[385378475,1757802639640,-480.0,0.00024657,3]
[385378476,1757802639650,-480.0,0.00024657,3]
[385378477,1757802639660,-480.0,0.00024657,3]
[385378478,1757802639669,-928.54,0.00024657,3]
[385378479,1757802639678,-480.0,0.00024657,3]
[385378480,1757802639688,-480.0,0.00024657,3]
[385378481,1757802639697,-445.42068606,0.00024657,3]
[385378482,1757802639706,-500.0,0.00024657,2]
[385378483,1757802639715,-500.0,0.00024657,3]
[385378484,1757802639724,-568.47,0.00024657,3]
[385378485,1757802639734,-500.0,0.00024657,3]
[385378486,1757802639744,-480.0,0.00024657,3]
[385378487,1757802639755,-852.99,0.00024657,3]
[385378488,1757802639764,-455.08241635,0.00024657,3]
[385378489,1757802639774,-151.0,0.00024657,7]
[385378490,1757802639783,-480.0,0.00024657,3]
[385378491,1757802639792,-480.0,0.00024657,3]
[385378492,1757802639801,-480.0,0.00024657,3]
[385378493,1757802639811,-480.0,0.00024657,3]
[385378494,1757802639821,-555.59,0.00024657,3]
[385378495,1757802639830,-151.0,0.00024657,7]
[385378496,1757802639839,-1373.29,0.00024657,3]
[385378497,1757802639849,-876.44,0.00024657,3]
[385378498,1757802639859,-800.99,0.00024657,3]
[385378499,1757802639869,-480.0,0.00024657,3]
[385378500,1757802639879,-480.0,0.00024657,3]
[385378501,1757802639888,-480.0,0.00024657,3]
[385378502,1757802639898,-480.0,0.00024657,3]
[385378503,1757802639907,-151.0,0.00024657,7]
[385378504,1757802639916,-480.0,0.00024657,3]
[385378505,1757802639926,-603.04731825,0.00024657,3]
[385378506,1757802639935,-575.24476819,0.00024657,3]
[385378507,1757802639944,-480.0,0.00024657,3]
[385378508,1757802639953,-511.27,0.00024657,3]
[385378509,1757802639963,-480.0,0.00024657,3]
[385378510,1757802639972,-857.25,0.00024657,3]
[385378511,1757802639981,-480.0,0.00024657,3]
[385378512,1757802639991,-480.0,0.00024657,3]
[385378513,1757802640001,-151.0,0.00024657,7]
[385378514,1757802640010,-1347.34,0.00024657,3]
[385378515,1757802640019,-480.0,0.00024657,3]
[385378516,1757802640028,-1078.42,0.00024657,3]
[385378517,1757802640038,-480.0,0.00024657,3]
[385378518,1757802640048,-480.0,0.00024657,3]
[385378519,1757802640058,-151.0,0.00024657,7]
[385378520,1757802640068,-480.0,0.00024657,3]
[385378521,1757802640077,-480.0,0.00024657,3]
[385378522,1757802640087,-480.0,0.00024657,3]
[385378523,1757802640096,-485.01,0.00024657,3]
[385378524,1757802640105,-526.92,0.00024657,3]
[385378525,1757802640114,-480.0,0.00024657,3]
[385378526,1757802640124,-480.0,0.00024657,3]
[385378527,1757802640134,-3123.28,0.00024657,3]
[385378528,1757802640144,-200.0,0.00024657,3]
[385378529,1757802640153,-480.0,0.00024657,3]
[385378530,1757802640162,-480.0,0.00024657,3]
[385378531,1757802640171,-881.55,0.00024657,3]
[385378532,1757802640181,-480.0,0.00024657,3]
[385378533,1757802640190,-151.0,0.00024657,7]
[385378534,1757802640199,-480.0,0.00024657,3]
[385378535,1757802640208,-151.0,0.00024657,7]
[385378536,1757802640218,-943.66,0.00024657,3]
[385378537,1757802640227,-640.34,0.00024657,3]
[385378538,1757802640236,-553.88,0.00024657,3]
[385378539,1757802640245,-1215.03,0.00024657,3]
[385378540,1757802640254,-750.92,0.00024657,3]
[385378541,1757802640264,-973.61,0.00024657,3]
[385378542,1757802640273,-151.0,0.00024657,7]
[385378543,1757802640283,-4375.28,0.00024657,3]
[385378544,1757802640292,-563.07,0.00024657,3]
[385378545,1757802640301,-794.49,0.00024657,3]
[385378546,1757802640310,-480.0,0.00024657,3]
[385378547,1757802640319,-671.45,0.00024657,3]
[385378548,1757802640328,-480.0,0.00024657,3]
[385378549,1757802640337,-151.0,0.00024657,7]
[385378550,1757802640347,-991.29,0.00024657,3]
[385378551,1757802640355,-15982.5,0.00024657,3]
[385378552,1757802640365,-534.37,0.00024657,3]
[385378553,1757802640374,-937.77,0.00024657,3]
[385378554,1757802640383,-1593.61,0.00024657,3]
[385378555,1757802640392,-480.0,0.00024657,3]
[385378556,1757802640402,-2599.14,0.00024657,3]
[385378557,1757802640411,-987.05,0.00024657,3]
[385378558,1757802640421,-480.0,0.00024657,3]
[385378559,1757802640431,-151.0,0.00024657,7]
[385378560,1757802640442,-151.0,0.00024657,7]
[385378561,1757802640452,-3597.67,0.00024657,3]
[385378562,1757802640461,-151.0,0.00024657,7]
[385378563,1757802640471,-583.68,0.00024657,3]
[385378564,1757802640482,-480.0,0.00024657,3]
[385378565,1757802640491,-160.0,0.00024657,3]
[385378566,1757802640501,-539.83,0.00024657,3]
[385378567,1757802640510,-480.0,0.00024657,3]
[385378568,1757802640519,-1591.65,0.00024657,3]
[385378569,1757802640528,-1311.94,0.00024657,3]
[385378570,1757802640537,-480.0,0.00024657,3]
[385378571,1757802640547,-481.27769607,0.00024657,3]
[385378572,1757802640555,-946.2,0.00024657,3]
[385378573,1757802640564,-5236.86,0.00024657,3]
[385378574,1757802640574,-1090.18,0.00024657,3]
[385378575,1757802640583,-186.0,0.00024657,3]
[385378576,1757802640592,-292.97,0.00024657,3]
[385378577,1757802640601,-186.0,0.00024657,3]
[385378578,1757802640610,-1161.43,0.00024657,3]
[385378579,1757802640620,-580.56,0.00024657,3]
[385378580,1757802640629,-480.0,0.00024657,3]
[385378581,1757802640638,-545.87,0.00024657,3]
[385378582,1757802640647,-546.49,0.00024657,3]
[385378583,1757802640658,-480.0,0.00024657,3]
[385378584,1757802640667,-480.0,0.00024657,3]
[385378585,1757802640677,-3877.64,0.00024657,3]
[385378586,1757802640686,-1718.33,0.00024657,3]
[385378587,1757802640695,-1439.41,0.00024657,3]
[385378588,1757802640704,-151.0,0.00024657,7]
[385378589,1757802640714,-151.0,0.00024657,7]
[385378590,1757802640723,-480.0,0.00024657,3]
[385378591,1757802640733,-480.0,0.00024657,3]
[385378592,1757802640742,-151.0,0.00024657,7]
[385378593,1757802640751,-480.1,0.00024657,3]
[385378594,1757802640760,-480.0,0.00024657,3]
[385378595,1757802640769,-480.0,0.00024657,3]
[385378596,1757802640779,-480.0,0.00024657,3]
[385378597,1757802640788,-750.4,0.00024657,3]
[385378599,1757802640797,-480.0,0.00024657,3]
[385378600,1757802640807,-13956.52230347,0.00024657,3]
[385378601,1757802640824,-20074.79769653,0.00024657,3]
[385378602,1757802640833,-480.0,0.00024657,3]
[385378603,1757802640842,-955.6,0.00024657,3]
[385378604,1757802640851,-1297.02,0.00024657,3]
[385378605,1757802640860,-2589.26,0.00024657,3]
[385378606,1757802640872,-151.0,0.00024657,7]
[385378607,1757802640882,-762.6,0.00024657,3]
[385378608,1757802640893,-1937.08,0.00024657,3]
[385378609,1757802640903,-480.0,0.00024657,3]
[385378610,1757802640913,-484.67924728,0.00024657,3]
[385378611,1757802640922,-480.0,0.00024657,3]
[385378612,1757802640935,-1871.54,0.00024657,3]
[385378613,1757802640946,-480.0,0.00024657,3]
[385378614,1757802640955,-487.16011767,0.00024657,3]
[385378615,1757802640964,-488.66789202,0.00024657,3]
[385378616,1757802640974,-8092.83,0.00024657,3]
[385378617,1757802640984,-480.0,0.00024657,3]
[385378618,1757802640993,-3979.41,0.00024657,3]
[385378619,1757802641004,-633.8,0.00024657,3]
[385378620,1757802641015,-480.0,0.00024657,3]
[385378621,1757802641028,-674.54,0.00024657,3]
[385378622,1757802641038,-480.0,0.00024657,3]
[385378623,1757802641048,-488.43399683,0.00024657,3]
[385378624,1757802641057,-657.93875038,0.00024657,3]
[385378625,1757802641069,-313.06124962,0.00024657,3]
[385378626,1757802641078,-500.0,0.00024657,3]
[385378627,1757802641088,-2536.35818798,0.00024657,3]
[385378628,1757802641099,-428.28425327,0.00024657,3]
[385378629,1757802641111,-379.2939947,0.00024657,3]
[385378630,1757802641126,-776.82356405,0.00024657,3]
[385378631,1757802641137,-3407.38,0.00024657,3]
[385378632,1757802641148,-480.0,0.00024657,3]
[385378633,1757802641158,-1130.93,0.00024657,3]
[385378634,1757802641167,-683.26,0.00024657,3]
[385378635,1757802641177,-480.0,0.00024657,3]
[385378636,1757802641186,-480.0,0.00024657,3]
[385378637,1757802641195,-480.0,0.00024657,3]
[385378638,1757802641205,-641.73,0.00024657,3]
[385378639,1757802641214,-1608.2,0.00024657,3]
[385378640,1757802641224,-352.77441232,0.00024657,3]
[385378641,1757802641237,-127.22558768,0.00024657,3]
[385378642,1757802641247,-480.0,0.00024657,3]
[385378643,1757802641257,-1813.34,0.00024657,3]
[385378644,1757802641267,-318.31815183,0.00024657,3]
[385378645,1757802641276,-8587.02,0.00024657,3]
[385378646,1757802641285,-578.32,0.00024657,3]
[385378647,1757802641294,-2767.83,0.00024657,3]
[385378648,1757802641306,-1108.57,0.00024657,3]
[385378649,1757802641315,-615.65,0.00024657,3]
[385378650,1757802641324,-4437.47112219,0.00024657,3]
[385378651,1757802641336,-1456.08887781,0.00024657,3]
[385378652,1757802641346,-423.86111683,0.00024657,3]
[385378653,1757802641492,-56.13888317,0.00024657,3]
[385378654,1757802641504,-480.0,0.00024657,3]
[385378655,1757802641513,-453.86111683,0.00024657,3]
[385378656,1757802641524,-26.13888317,0.00024657,3]
[385378657,1757802641534,-977.34111683,0.00024657,3]
[385378658,1757802641754,-734.55888317,0.00024657,3]
[385378659,1757802641764,-480.0,0.00024657,3]
[385378660,1757802641775,-1519.02,0.00024657,3]
[385378661,1757802641785,-2466.7752763,0.00024657,3]
[385378662,1757802641798,-2402.8247237,0.00024657,3]
[385378663,1757802641807,-151.0,0.00024657,7]
[385378664,1757802641818,-483.85,0.00024657,3]
[385378665,1757802641830,-548.47111683,0.00024657,3]
[385381877,1757803162124,458.0,0.0002755,120]
[385381948,1757803832140,-1963.44325866,0.000199,2]
[385381950,1757803832149,-1963.44325866,0.00021149,2]
[385381952,1757803832159,-1963.44325866,0.00022398,2]
[385381954,1757803832168,-24900.0,0.00023288,2]
[385381956,1757803832177,-152.445754,0.00023479,20]
[385381958,1757803832186,-1200.0,0.00023646,2]
[385381960,1757803832195,-1963.44325866,0.00023647,2]
[385381962,1757803832204,-152.445754,0.00023748,20]
[385381964,1757803832213,-1200.0,0.00023774,2]
[385381966,1757803832222,-300.0,0.00023782,2]
[385381968,1757803832231,-300.0,0.00023782,2]
[385381970,1757803832240,-300.0,0.00023782,2]
[385381972,1757803832249,-300.0,0.00023782,2]
[385381974,1757803832258,-376.6679916,0.000238,2]
[385381976,1757803832268,-188.5028093,0.000238,2]
[385381978,1757803832277,-188.5028093,0.000238,2]
[385381980,1757803832287,-188.5028093,0.000238,2]
[385381982,1757803832296,-188.5028093,0.00023836,2]
[385381984,1757803832305,-188.5028093,0.00023836,2]
[385381986,1757803832314,-188.5028093,0.00023836,2]
[385381988,1757803832324,-188.5028093,0.00023836,2]
[385381990,1757803832333,-188.5028093,0.00023836,2]
[385381992,1757803832343,-375.8576868,0.00023836,2]
[385381994,1757803832352,-152.445754,0.00024018,20]
[385381996,1757803832361,-153.0,0.0002411,2]
[385381999,1757803832371,-153.0,0.0002411,2]
[385382000,1757803832380,-153.0,0.0002411,2]
[385382002,1757803832389,-160.0,0.0002414,2]
[385382004,1757803832397,-152.445754,0.00024287,20]
[385382006,1757803832406,-153.0,0.00024384,2]
[385382008,1757803832415,-152.445754,0.00024394,5]
[385382010,1757803832424,-152.445754,0.00024396,5]
[385382012,1757803832433,-152.445754,0.00024399,5]
[385382014,1757803832442,-152.445754,0.00024401,5]
[385382016,1757803832451,-152.445754,0.00024402,7]
[385382018,1757803832460,-168.0,0.00024437,2]
[385382020,1757803832470,-261.72,0.00024557,3]
[385382023,1757803832479,-1262.4304261,0.00024557,2]
[385382025,1757803832488,-213.145057,0.00024557,2]
[385382027,1757803832498,-154.683,0.0002456,7]
[385382028,1757803832508,-152.445754,0.00024574,7]
[385382031,1757803832517,-10583.28703691,0.00024577,2]
[385382032,1757803832527,-479.904,0.000246,2]
[385382034,1757803832536,-152.445754,0.0002462,10]
[385382037,1757803832545,-501.84830462,0.00024656,2]
[385382038,1757803832554,-250.0,0.00024656,2]
[385382040,1757803832563,-500.0,0.00024656,2]
[385382042,1757803832573,-500.0,0.00024656,2]
[385382044,1757803832582,-500.0,0.00024656,2]
[385382046,1757803832591,-500.0,0.00024656,2]
[385382048,1757803832600,-500.0,0.00024656,2]
[385382050,1757803832609,-500.0,0.00024656,2]
[385382052,1757803832619,-500.0,0.00024656,2]
[385382054,1757803832628,-500.0,0.00024656,2]
[385382056,1757803832637,-500.0,0.00024656,2]
[385382058,1757803832646,-500.0,0.00024656,2]
[385382060,1757803832655,-500.0,0.00024656,2]
[385382062,1757803832666,-500.0,0.00024656,2]
[385382083,1757803832675,-500.0,0.00024656,2]
[385382086,1757803832854,-500.0,0.00024656,2]
[385382088,1757803832863,-500.0,0.00024656,2]
[385382090,1757803832873,-500.0,0.00024656,2]
[385382092,1757803832882,-500.0,0.00024656,2]
[385382094,1757803832891,-500.0,0.00024656,2]
[385382096,1757803832900,-492.5252563,0.00024656,2]
[385382098,1757803832909,-500.0,0.00024656,2]
[385382100,1757803832918,-500.0,0.00024656,2]
[385382102,1757803832927,-500.0,0.00024656,2]
[385382104,1757803832937,-500.0,0.00024656,2]
[385382106,1757803832947,-500.0,0.00024656,2]
[385382107,1757803832955,-500.0,0.00024656,2]
[385382108,1757803832964,-500.0,0.00024656,2]
[385382109,1757803832973,-500.0,0.00024656,2]
[385382110,1757803832982,-190.14566547,0.00024656,2]
[385382111,1757803832991,-500.0,0.00024656,2]
[385382112,1757803833000,-316.01895701,0.00024656,2]
[385382113,1757803833010,-544.194153,0.00024656,2]
[385382114,1757803833020,-500.0,0.00024656,2]
[385382115,1757803833030,-500.0,0.00024656,2]
[385382116,1757803833040,-500.0,0.00024656,2]
[385382117,1757803833049,-500.0,0.00024656,2]
[385382118,1757803833059,-500.0,0.00024656,2]
[385382120,1757803833068,-500.0,0.00024656,2]
[385382122,1757803833078,-500.0,0.00024656,2]
[385382124,1757803833087,-500.0,0.00024656,2]
[385382126,1757803833097,-500.0,0.00024656,2]
[385382127,1757803833106,-431.27189434,0.00024656,2]
[385382129,1757803833116,-500.0,0.00024656,2]
[385382131,1757803833125,-480.0,0.00024657,3]
[385382133,1757803833134,-480.0,0.00024657,3]
[385382135,1757803833143,-480.0,0.00024657,3]
[385382137,1757803833153,-490.08,0.00024657,3]
[385382139,1757803833162,-480.0,0.00024657,3]
[385382141,1757803833172,-480.0,0.00024657,3]
[385382143,1757803833181,-480.0,0.00024657,3]
[385382145,1757803833190,-480.0,0.00024657,3]
[385382147,1757803833199,-501.7,0.00024657,3]
[385382149,1757803833208,-156.58006877,0.00024657,3]
[385382151,1757803833218,-480.0,0.00024657,3]
[385382153,1757803833227,-480.0,0.00024657,3]
[385382155,1757803833236,-480.0,0.00024657,3]
[385382157,1757803833246,-480.0,0.00024657,3]
[385382159,1757803833255,-480.0,0.00024657,3]
[385382161,1757803833264,-480.0,0.00024657,3]
[385382163,1757803833273,-480.0,0.00024657,3]
[385382165,1757803833282,-480.0,0.00024657,3]
[385382167,1757803833291,-480.0,0.00024657,3]
[385382168,1757803833300,-589.99,0.00024657,3]
[385382170,1757803833309,-480.0,0.00024657,3]
[385382172,1757803833320,-480.0,0.00024657,3]
[385382174,1757803833329,-480.0,0.00024657,3]
[385382176,1757803833338,-480.0,0.00024657,3]
[385382178,1757803833348,-485.38515749,0.00024657,3]
[385382180,1757803833356,-480.0,0.00024657,3]
[385382182,1757803833366,-480.0,0.00024657,3]
[385382184,1757803833375,-480.0,0.00024657,3]
[385382186,1757803833384,-480.0,0.00024657,3]
[385382188,1757803833393,-480.0,0.00024657,3]
[385382190,1757803833403,-480.0,0.00024657,3]
[385382192,1757803833412,-151.0,0.00024657,7]
[385382194,1757803833422,-669.3,0.00024657,3]
[385382196,1757803833431,-316.34652828,0.00024657,3]
[385382198,1757803833441,-480.0,0.00024657,3]
[385382200,1757803833450,-793.5,0.00024657,3]
[385382202,1757803833459,-480.0,0.00024657,3]
[385382204,1757803833468,-480.0,0.00024657,3]
[385382206,1757803833480,-480.0,0.00024657,3]
[385382208,1757803833490,-480.0,0.00024657,3]
[385382210,1757803833499,-480.0,0.00024657,3]
[385382212,1757803833509,-644.49,0.00024657,3]
[385382214,1757803833519,-767.61,0.00024657,3]
[385382217,1757803833528,-480.0,0.00024657,3]
[385382218,1757803833538,-532.44,0.00024657,3]
[385382221,1757803833547,-2093.0880685,0.00024657,2]
[385382222,1757803833559,-480.0,0.00024657,3]
[385382225,1757803833568,-489.97,0.00024657,3]
[385382227,1757803833578,-480.0,0.00024657,3]
[385382229,1757803833587,-480.0,0.00024657,3]
[385382231,1757803833596,-200.0,0.00024657,3]
[385382233,1757803833606,-504.96,0.00024657,3]
[385382235,1757803833615,-1664.69,0.00024657,3]
[385382237,1757803833625,-480.0,0.00024657,3]
[385382239,1757803833635,-531.22137344,0.00024657,3]
[385382241,1757803833644,-627.09,0.00024657,3]
[385382243,1757803833654,-480.0,0.00024657,3]
[385382245,1757803833663,-480.0,0.00024657,3]
[385382247,1757803833672,-480.0,0.00024657,3]
[385382249,1757803833681,-480.0,0.00024657,3]
[385382251,1757803833690,-480.0,0.00024657,3]
[385382253,1757803833699,-151.0,0.00024657,7]
[385382255,1757803833708,-151.0,0.00024657,7]
[385382257,1757803833718,-480.0,0.00024657,3]
[385382259,1757803833728,-781.38,0.00024657,3]
[385382260,1757803833737,-870.11,0.00024657,3]
[385382263,1757803833747,-480.0,0.00024657,3]
[385382265,1757803833756,-480.0,0.00024657,3]
[385382267,1757803833766,-539.61,0.00024657,3]
[385382269,1757803833775,-1006.99,0.00024657,3]
[385382271,1757803833784,-480.0,0.00024657,3]
[385382273,1757803833793,-480.0,0.00024657,3]
[385382275,1757803833803,-1145.25,0.00024657,3]
[385382277,1757803833812,-480.0,0.00024657,3]
[385382278,1757803833821,-786.39,0.00024657,3]
[385382281,1757803833831,-480.0,0.00024657,3]
[385382282,1757803833840,-486.72549177,0.00024657,3]
[385382283,1757803833849,-480.0,0.00024657,3]
[385382284,1757803833859,-2453.19,0.00024657,3]
[385382285,1757803833868,-480.0,0.00024657,3]
[385382286,1757803833877,-480.0,0.00024657,3]
[385382287,1757803833886,-480.0,0.00024657,3]
[385382288,1757803833895,-480.0,0.00024657,3]
[385382289,1757803833904,-480.0,0.00024657,3]
[385382290,1757803833914,-480.0,0.00024657,3]
[385382291,1757803833923,-384.45436461,0.00024657,3]
[385382292,1757803833932,-480.0,0.00024657,3]
[385382293,1757803833941,-480.0,0.00024657,3]
[385382294,1757803833950,-480.0,0.00024657,3]
[385382295,1757803833960,-480.0,0.00024657,3]
[385382296,1757803833968,-480.0,0.00024657,3]
[385382297,1757803833978,-30.96071487,0.00024657,3]
[385382390,1757803837914,-449.03928513,0.00024657,3]
[385382391,1757803837924,-480.0,0.00024657,3]
[385382392,1757803837933,-500.0,0.00024657,3]
[385382393,1757803837942,-480.0,0.00024657,3]
[385382394,1757803837951,-480.0,0.00024657,3]
[385382395,1757803837961,-480.0,0.00024657,3]
[385382396,1757803837970,-480.0,0.00024657,3]
[385382397,1757803837979,-552.0,0.00024657,3]
[385382398,1757803837988,-1316.07,0.00024657,3]
[385382399,1757803837997,-160.129615,0.00024657,7]
[385382400,1757803838007,-833.82288678,0.00024657,3]
[385382401,1757803838018,-6.09711322,0.00024657,3]
[385382402,1757803838027,-151.0,0.00024657,7]
[385382403,1757803838036,-151.0,0.00024657,7]
[385382404,1757803838046,-27.60288678,0.00024657,7]
[385382405,1757803838057,-149.81567322,0.00024657,7]
[385382406,1757803838066,-141.28423322,0.00024657,3]
[385382407,1757803838077,-338.71576678,0.00024657,3]
[385382408,1757803838087,-480.0,0.00024657,3]
[385382409,1757803838096,-480.0,0.00024657,3]
[385382410,1757803838105,-480.0,0.00024657,3]
[385382411,1757803838114,-480.0,0.00024657,3]
[385382412,1757803838123,-909.85,0.00024657,3]
[385382413,1757803838132,-480.0,0.00024657,3]
[385382414,1757803838141,-480.0,0.00024657,3]
[385382415,1757803838150,-480.0,0.00024657,3]
[385382416,1757803838159,-480.0,0.00024657,3]
[385382417,1757803838168,-480.0,0.00024657,3]
[385382418,1757803838177,-841.53,0.00024657,3]
[385382419,1757803838186,-480.0,0.00024657,3]
[385382420,1757803838195,-837.45,0.00024657,3]
[385382421,1757803838204,-480.0,0.00024657,3]
[385382422,1757803838213,-480.0,0.00024657,3]
[385382423,1757803838222,-480.0,0.00024657,3]
[385382424,1757803838231,-480.0,0.00024657,3]
[385382425,1757803838241,-627.7296601,0.00024657,3]
[385382426,1757803838250,-480.0,0.00024657,3]
[385382427,1757803838259,-1053.48,0.00024657,3]
[385382428,1757803838268,-359.71360648,0.00024657,3]
[385382429,1757803838278,-151.0,0.00024657,7]
[385382430,1757803838286,-151.0,0.00024657,7]
[385382431,1757803838295,-151.0,0.00024657,7]
[385382432,1757803838305,-480.0,0.00024657,3]
[385382433,1757803838315,-480.0,0.00024657,3]
[385382434,1757803838326,-480.0,0.00024657,3]
[385382435,1757803838335,-480.0,0.00024657,3]
[385382436,1757803838344,-480.0,0.00024657,3]
[385382437,1757803838353,-844.17,0.00024657,3]
[385382438,1757803838364,-1291.2,0.00024657,3]
[385382439,1757803838375,-480.0,0.00024657,3]
[385382440,1757803838386,-480.0,0.00024657,3]
[385382441,1757803838395,-520.1,0.00024657,3]
[385382442,1757803838405,-480.0,0.00024657,3]
[385382443,1757803838415,-480.0,0.00024657,3]
[385382444,1757803838425,-480.0,0.00024657,3]
[385382445,1757803838434,-432.77562155,0.00024657,3]
[385382446,1757803838443,-480.0,0.00024657,3]
[385382447,1757803838452,-480.0,0.00024657,3]
[385382448,1757803838461,-480.0,0.00024657,3]
[385382449,1757803838471,-1184.4,0.00024657,3]
[385382450,1757803838480,-480.0,0.00024657,3]
[385382451,1757803838489,-157.0,0.00024657,3]
[385382452,1757803838498,-157.0,0.00024657,2]
[385382453,1757803838507,-480.0,0.00024657,3]
[385382454,1757803838517,-340.58124665,0.00024657,3]
[385382455,1757803838528,-480.0,0.00024657,3]
[385382456,1757803838539,-480.0,0.00024657,3]
[385382457,1757803838550,-480.0,0.00024657,3]
[385382458,1757803838559,-480.0,0.00024657,3]
[385382459,1757803838568,-500.0,0.00024657,3]
[385382460,1757803838577,-930.0,0.00024657,3]
[385382461,1757803838586,-480.0,0.00024657,3]
[385382462,1757803838595,-480.0,0.00024657,3]
[385382463,1757803838607,-774.23,0.00024657,3]
[385382464,1757803838618,-480.0,0.00024657,3]
[385382465,1757803838627,-480.0,0.00024657,3]
[385382466,1757803838637,-480.0,0.00024657,3]
[385382467,1757803838647,-214.02284841,0.00024657,3]
[385382468,1757803838657,-663.47,0.00024657,3]
[385382469,1757803838666,-844.82,0.00024657,3]
[385382470,1757803838675,-480.0,0.00024657,3]
[385382471,1757803838685,-483.75456902,0.00024657,3]
[385382472,1757803838694,-480.0,0.00024657,3]
[385382473,1757803838703,-480.0,0.00024657,3]
[385382474,1757803838712,-480.0,0.00024657,3]
[385382475,1757803838721,-480.0,0.00024657,3]
[385382476,1757803838730,-480.0,0.00024657,3]
[385382477,1757803838739,-480.0,0.00024657,3]
[385382478,1757803838749,-480.0,0.00024657,3]
[385382479,1757803838759,-480.0,0.00024657,3]
[385382480,1757803838768,-485.12393942,0.00024657,3]
[385382481,1757803838777,-480.0,0.00024657,3]
[385382482,1757803838788,-480.0,0.00024657,3]
[385382483,1757803838797,-480.0,0.00024657,3]
[385382484,1757803838808,-480.0,0.00024657,3]
[385382485,1757803838819,-579.36,0.00024657,3]
[385382486,1757803838828,-170.875051,0.00024657,3]
[385382487,1757803838837,-480.0,0.00024657,3]
[385382488,1757803838848,-485.96400693,0.00024657,3]
[385382489,1757803838860,-480.0,0.00024657,3]
[385382490,1757803838869,-633.65,0.00024657,3]
[385382491,1757803838879,-509.14282418,0.00024657,3]
[385382492,1757803838887,-480.0,0.00024657,3]
[385382493,1757803838896,-480.0,0.00024657,3]
[385382494,1757803838906,-480.0,0.00024657,3]
[385382495,1757803838917,-480.0,0.00024657,3]
[385382496,1757803838926,-480.0,0.00024657,3]
[385382497,1757803838935,-739.63,0.00024657,3]
[385382498,1757803838944,-480.0,0.00024657,3]
[385382499,1757803838953,-480.0,0.00024657,3]
[385382500,1757803838962,-953.04,0.00024657,3]
[385382501,1757803838971,-311.54081522,0.00024657,3]
[385382502,1757803838980,-480.0,0.00024657,3]
[385382503,1757803838989,-480.0,0.00024657,3]
[385382504,1757803838998,-480.0,0.00024657,3]
[385382505,1757803839007,-151.0,0.00024657,7]
[385382506,1757803839017,-151.0,0.00024657,7]
[385382507,1757803839026,-480.0,0.00024657,3]
[385382508,1757803839035,-151.0,0.00024657,7]
[385382509,1757803839044,-151.0,0.00024657,7]